[Event "WSTCC-50 2024"]
[Site "Krakow"]
[Date "2024.07.04"]
[Round "3.17"]
[White "Dahl, Fredrik A"]
[Black "Tsiganova, Monika"]
[Result "1-0"]
[ECO "D78"]
[WhiteElo "2237"]
[BlackElo "1999"]
[Annotator "TA"]
[PlyCount "97"]
[EventDate "2024.07.01"]
[EventType "team-tourn"]
[EventCountry "POL"]
[SourceTitle "playchess.com"]
[Source "ChessBase"]
[SourceQuality "1"]
[TimeControl "40/5400+30:1800+30"]

{[%evp 18,97,22,16,21,16,18,19,24,4,11,9,24,28,39,37,57,55,60,55,57,61,62,58,64,56,51,50,62,55,109,96,141,133,149,141,157,170,421,423,417,414,400,332,328,302,464,260,558,566,566,574,521,555,549,568,570,565,589,584,577,569,722,704,690,690,742,742,745,745,745,735,716,615,738,736,1137,896,1032,913,1077,994]} 1. d4 {[%emt 0:00:03]} Nf6 {[%emt 0:00:15]} 2. Nf3 {[%emt 0:00:13]} g6 {[%emt 0:00:48]} 3. g3 {[%emt 0:00:13]} Bg7 {[%emt 0:00:35]} 4. Bg2 {[%emt 0:00:06]} O-O {[%emt 0:00:08]} 5. O-O {[%emt 0:00:13]} d5 {[%emt 0:01:02]} 6. c4 {[%emt 0:00:58]} c6 {[%emt 0:02:43]} 7. b3 {[%emt 0:00:38]} a5 {[%emt 0:02:46]} 8. Nc3 {[%emt 0:02:17]} Bf5 {[%emt 0:00:53]} 9. Bb2 {[%emt 0:02:17]} Ne4 {[%emt 0:01:27]} 10. e3 {[%emt 0:01:26]} Nd7 {[%emt 0:09:42]} 11. Qe2 {[%emt 0:04:02]} Nxc3 {[%emt 0:05:32]} 12. Bxc3 {[%emt 0:00:02]} Be4 {[%emt 0:00:44] Die Stellung ist ausgeglichen.} 13. Rfc1 {[%emt 0:04:23]} e6 {[%emt 0:03:12]} 14. Bf1 {[%emt 0:12:57]} Bxf3 {[%emt 0:16:39]} 15. Qxf3 {[%emt 0:00:09]} f5 {[%emt 0:00:37]} 16. cxd5 {[%emt 0:10:30]} exd5 {[%emt 0:00:16]} 17. b4 {[%emt 0:00:11]} axb4 {[%emt 0:04:25]} 18. Bxb4 {[%emt 0:00:13]} Re8 {[%emt 0:00:10]} 19. a4 {[%emt 0:02:43]} Nf6 {[%emt 0:06:29]} 20. a5 {[%emt 0:01:10]} Ne4 {[%emt 0:00:31]} 21. Rab1 {[%emt 0:14:10][%cal Ba1b1,Bb1b6,Bb6c6][%mdl 32]} Qd7 {[%emt 0:01:52]} 22. Be1 {[%emt 0:02:25]} Ng5 {[%emt 0:10:12]} 23. Qd1 {[%emt 0:02:22]} Re7 {[%emt 0:10:02] Weiß überlässt nun nichts mehr dem Zufall.} ({Besser ist} 23... Bf6 $14) 24. h4 $16 {[%emt 0:03:37]} Ne4 {[%emt 0:00:26]} 25. Rb6 {[%emt 0:08:37]} Qc7 {[%emt 0:09:24][%cal Oe4g3]} 26. Qb3 {[%emt 0:02:42]} Bh6 {[%emt 0:00:21][%cal Oe4f2]} 27. a6 {[%emt 0:03:04]} bxa6 {[%emt 0:02:21]} (27... Ra7 28. Kg2 (28. axb7 Rxb7 29. Rxb7 Qxb7 $16) 28... Rf7) 28. Rbxc6 $18 {[%emt 0:05:25]} ({Finger weg von} 28. Rcxc6 Qd7 $18) 28... Qd8 {[%emt 0:00:20]} 29. Bxa6 {[%emt 0:01:20] Droht stark Rc8.} ({Weniger gut wäre} 29. Rxa6 Rb8 30. Qa2 Reb7 $18) 29... Kg7 {[%emt 0:03:38]} 30. Rc8 {[%emt 0:09:20]} Rxc8 {[%emt 0:00:08]} 31. Rxc8 {[%emt 0:00:02]} Qd7 {[%emt 0:00:20]} (31... Qd6 $142) 32. Rb8 {[%emt 0:04:45]} (32. Bb4 $142 Rf7 33. Qa3) 32... Nf6 $2 {[%emt 0:02:15]} (32... Qc6) 33. Bb4 {[%emt 0:00:59] Weiß steht klar auf Gewinn.} Rf7 {[%emt 0:00:29] [#]} 34. Bf8+ $1 {[%emt 0:01:19][%mdl 512]} Rxf8 {[%emt 0:00:17]} 35. Rb7 {[%emt 0:00:05]} Rf7 {[%emt 0:00:23]} 36. Rxd7 {[%emt 0:00:05]} Rxd7 {[%emt 0:00:06]} 37. Bc8 {[%emt 0:00:59]} Re7 {[%emt 0:01:30]} 38. Bb7 {[%emt 0:00:30]} Rd7 {[%emt 0:00:37][%cal Be7d7,Bd7d6,Bd6e6][%mdl 32]} 39. Bc6 {[%emt 0:00:34]} Rd6 {[%emt 0:00:07]} 40. Qb8 {[%emt 0:01:33]} Re6 {[%emt 0:02:36]} 41. Qb7+ {[%emt 0:30:40]} Kg8 {[%emt 0:31:06]} 42. Bxd5 {[%emt 0:01:19]} Nxd5 {[%emt 0:00:07]} 43. Qxd5 {[%emt 0:00:06][%mdl 4096] Endspiel. KQ-KRB} Kf7 {[%emt 0:00:04]} 44. Qb7+ {[%emt 0:00:53]} Re7 {[%emt 0:00:12]} 45. Qb3+ {[%emt 0:00:29]} Kf6 {[%emt 0:00:29]} 46. Qg8 {[%emt 0:00:00]} Rd7 {[%emt 0:00:00]} 47. Qh8+ {[%emt 0:00:00]} Ke6 {[%emt 0:00:00]} 48. Kg2 {[%emt 0:00:00]} Kd6 {[%emt 0:00:00] [#]} 49. h5 $1 {[%emt 0:00:00] Gewichteter Fehlerwert: Weiß=0.18 (sehr präzise) /Schwarz=0.38.  Fehler:       	Weiß=1     	Schwarz=4     Ungenau:       	---       	Schwarz=1     OK:         	Weiß=15    	Schwarz=10    Bester:       	Weiß=2     	Schwarz=1} 1-0

[Event "WSTCC-50 2024"]
[Site "Krakow"]
[Date "2024.07.04"]
[Round "3.17"]
[White "Mertens, Marc"]
[Black "Mitchell, Martin"]
[Result "0-1"]
[ECO "B07"]
[WhiteElo "2142"]
[BlackElo "2159"]
[Annotator "RC"]
[PlyCount "50"]
[EventDate "2024.07.01"]
[EventType "team-tourn"]
[EventCountry "POL"]
[SourceTitle "playchess.com"]
[Source "ChessBase"]
[SourceQuality "1"]
[TimeControl "40/5400+30:1800+30"]

1. e4 {[%emt 0:00:03]} d6 {[%emt 0:00:32]} 2. d4 {[%emt 0:00:06]} Nf6 {[%emt 0:00:06]} 3. Nc3 {[%emt 0:00:07]} g6 {[%emt 0:00:46]} 4. Be3 {[%emt 0:00:32]} c6 {[%emt 0:00:23]} 5. h3 {[%emt 0:00:35]} Nbd7 {[%emt 0:00:32]} 6. f4 {[%emt 0:00:55]} d5 {[%emt 0:01:18]} 7. e5 {[%emt 0:12:32]} Ne4 {[%emt 0:03:51]} 8. Bd3 {[%emt 0:00:33]} Ng3 {[%emt 0:00:23]} 9. Rh2 {[%emt 0:00:06]} f5 {[%emt 0:00:11]} 10. exf6 {[%emt 0:09:07]} Nxf6 {[%emt 0:01:08]} 11. Qf3 {[%emt 0:01:18]} Nf5 {[%emt 0:09:45]} 12. g4 {[%emt 0:01:44]} Nd6 {[%emt 0:08:00]} 13. Nge2 {[%emt 0:04:29]} Be6 {[%emt 0:09:25]} 14. Ng3 {[%emt 0:06:37]} Bg7 {[%emt 0:03:01]} 15. O-O-O {[%emt 0:04:55]} Qa5 {[%emt 0:03:42]} 16. Re2 {[%emt 0:07:34]} Nc4 {[%emt 0:15:54]} 17. Bd2 {[%emt 0:01:17]} Nxd2 {[%emt 0:02:01]} 18. Rdxd2 {[%emt 0:00:07]} Bd7 {[%emt 0:02:05]} 19. f5 {[%emt 0:04:16]} Bh6 {[%emt 0:05:35]} 20. fxg6 {[%emt 0:00:09]} O-O-O {[%emt 0:10:56]} 21. Rxe7 {[%emt 0:17:19]} Ne4 {[%emt 0:03:07]} 22. Ngxe4 {[%emt 0:05:38]} dxe4 {[%emt 0:00:38]} 23. Bxe4 {[%emt 0:01:48]} Qg5 {[%emt 0:03:40]} 24. Qd3 {[%emt 0:02:09]} Qxe7 {[%emt 0:00:40]} 25. Nb1 Bf8 0-1

[Event "WSTCC-50 2024"]
[Site "Krakow"]
[Date "2024.07.04"]
[Round "3.18"]
[White "Hulme, William"]
[Black "Haensel, Jean-Marie"]
[Result "1-0"]
[ECO "A96"]
[WhiteElo "1941"]
[BlackElo "1868"]
[Annotator "NA RC"]
[PlyCount "107"]
[EventDate "2024.07.01"]
[EventType "team-tourn"]
[EventCountry "POL"]
[SourceTitle "playchess.com"]
[Source "ChessBase"]
[SourceQuality "1"]
[TimeControl "40/5400+30:1800+30"]

1. d4 {[%emt 0:00:13]} e6 {[%emt 0:00:10]} 2. c4 {[%emt 0:00:16]} f5 {[%emt 0:00:14]} 3. Nf3 {[%emt 0:00:25]} Nf6 {[%emt 0:00:18]} 4. g3 {[%emt 0:00:11]} Be7 {[%emt 0:00:38]} 5. Bg2 {[%emt 0:00:11]} d6 {[%emt 0:00:10]} 6. O-O {[%emt 0:00:40]} O-O {[%emt 0:00:15]} 7. Nc3 {[%emt 0:00:39]} Ne4 {[%emt 0:00:51]} 8. Nxe4 {[%emt 0:00:15]} fxe4 {[%emt 0:00:08]} 9. Ne1 {[%emt 0:00:07]} d5 {[%emt 0:01:00]} 10. Be3 {[%emt 0:00:28]} Nc6 {[%emt 0:03:27]} 11. Rc1 {[%emt 0:00:08]} Bd7 {[%emt 0:04:15]} 12. cxd5 {[%emt 0:07:51]} exd5 {[%emt 0:00:19]} 13. Qb3 {[%emt 0:00:52]} Be8 {[%emt 0:04:05]} 14. Bxe4 {[%emt 0:01:17]} Bf7 {[%emt 0:01:13]} 15. Bg2 {[%emt 0:01:31]} Na5 {[%emt 0:01:18]} 16. Qc3 {[%emt 0:02:16]} c6 {[%emt 0:00:35]} 17. Nf3 {[%emt 0:06:26]} Bh5 {[%emt 0:04:33]} 18. Bf4 {[%emt 0:05:02]} Nc4 {[%emt 0:04:47]} 19. Rfe1 {[%emt 0:11:42]} a5 {[%emt 0:04:01]} 20. a3 {[%emt 0:00:53]} Qb6 {[%emt 0:01:42]} 21. Ne5 {[%emt 0:04:42]} Nxe5 {[%emt 0:09:39]} 22. Bxe5 {[%emt 0:01:27]} Bg6 {[%emt 0:02:55]} 23. e4 {[%emt 0:07:15]} dxe4 {[%emt 0:03:21]} 24. Bxe4 {[%emt 0:00:32]} Bxe4 {[%emt 0:00:20]} 25. Rxe4 {[%emt 0:00:08]} Bf6 {[%emt 0:04:25]} 26. Rce1 {[%emt 0:08:28]} h6 {[%emt 0:01:08]} 27. R1e2 {[%emt 0:02:53]} Qb5 {[%emt 0:04:45]} 28. Bxf6 {[%emt 0:07:23]} Rxf6 {[%emt 0:00:20]} 29. Re5 {[%emt 0:00:38]} Qb6 {[%emt 0:01:30]} 30. Qc4+ {[%emt 0:01:50]} Kh7 {[%emt 0:02:34]} 31. Qd3+ {[%emt 0:03:42]} Kg8 {[%emt 0:02:34]} 32. Qc4+ {[%emt 0:00:24]} Kh7 {[%emt 0:00:12]} 33. Qc5 {[%emt 0:06:55]} Qb3 {[%emt 0:07:33]} 34. Re7 {[%emt 0:01:13]} Qd1+ {[%emt 0:05:57]} 35. Kg2 {[%emt 0:01:49]} Qb3 {[%emt 0:00:15]} 36. Qc2+ {[%emt 0:04:08]} Qxc2 {[%emt 0:02:24]} 37. Rxc2 {[%emt 0:00:00]} b5 {[%emt 0:01:23]} 38. Rc7 {[%emt 0:00:00]} Rd8 {[%emt 0:02:19]} 39. R7xc6 {[%emt 0:00:01]} Rxd4 {[%emt 0:01:39]} 40. Rxf6 {[%emt 0:00:19]} gxf6 {[%emt 0:00:11]} 41. Rc5 {[%emt 0:30:17]} b4 {[%emt 0:30:57]} 42. Rxa5 {[%emt 0:00:11]} bxa3 {[%emt 0:00:09]} 43. bxa3 {[%emt 0:01:43]} Rd3 {[%emt 0:01:18]} 44. a4 {[%emt 0:04:14]} Ra3 {[%emt 0:00:14]} 45. g4 {[%emt 0:00:24]} Kg6 {[%emt 0:00:27]} 46. h4 {[%emt 0:00:40]} Kg7 {[%emt 0:05:46]} 47. f3 {[%emt 0:00:35]} Ra2+ {[%emt 0:00:26]} 48. Kg3 {[%emt 0:00:16]} Ra1 {[%emt 0:00:40]} 49. Ra7+ {[%emt 0:00:44]} Kg8 {[%emt 0:00:11]} 50. h5 {[%emt 0:01:53]} Ra3 {[%emt 0:00:21]} 51. Kf4 {[%emt 0:00:33]} Rb3 {[%emt 0:00:48]} 52. Ke4 {[%emt 0:01:57]} Ra3 {[%emt 0:01:11]} 53. f4 {[%emt 0:00:29]} Ra1 {[%emt 0:00:33]} 54. Kf5 {[%emt 0:00:37]} 1-0

[Event "WSTCC-50 2024"]
[Site "Krakow"]
[Date "2024.07.04"]
[Round "3.18"]
[White "Narva, Regina"]
[Black "Berg, Anders Hoyer"]
[Result "1/2-1/2"]
[ECO "C44"]
[WhiteElo "1921"]
[BlackElo "2079"]
[Annotator "NA RC"]
[PlyCount "53"]
[EventDate "2024.07.01"]
[EventType "team-tourn"]
[EventCountry "POL"]
[SourceTitle "playchess.com"]
[Source "ChessBase"]
[SourceQuality "1"]
[TimeControl "40/5400+30:1800+30"]

1. e4 {[%emt 0:00:07]} e5 {[%emt 0:00:06]} 2. Nf3 {[%emt 0:01:46]} Nc6 {[%emt 0:00:04]} 3. c3 {[%emt 0:02:21]} d5 {[%emt 0:06:15]} 4. Bd3 {[%emt 0:14:05]} Nf6 {[%emt 0:02:13]} 5. Qc2 {[%emt 0:13:00]} dxe4 {[%emt 0:09:50]} 6. Bxe4 {[%emt 0:00:25]} Nxe4 {[%emt 0:00:17]} 7. Qxe4 {[%emt 0:00:08]} f5 {[%emt 0:01:44]} 8. Qe3 {[%emt 0:06:22]} Bd6 {[%emt 0:08:11]} 9. Nxe5 {[%emt 0:08:18]} Nxe5 {[%emt 0:12:45]} 10. d4 {[%emt 0:00:18]} O-O {[%emt 0:01:46]} 11. dxe5 {[%emt 0:00:15]} Bxe5 {[%emt 0:00:25]} 12. O-O {[%emt 0:00:42]} Re8 {[%emt 0:08:25]} 13. Qf3 {[%emt 0:08:44]} c6 {[%emt 0:08:55]} 14. Bf4 {[%emt 0:04:50]} Bf6 {[%emt 0:07:46]} 15. Be3 {[%emt 0:08:04]} Be6 {[%emt 0:04:11]} 16. Nd2 {[%emt 0:01:48]} g6 {[%emt 0:05:40]} 17. Nb3 {[%emt 0:02:00]} Qc7 {[%emt 0:01:07]} 18. Bd4 {[%emt 0:14:00]} Bd5 {[%emt 0:01:14]} 19. Qh3 {[%emt 0:00:40]} Bxd4 {[%emt 0:03:30]} 20. Nxd4 {[%emt 0:00:11]} c5 {[%emt 0:00:43]} 21. Nc2 {[%emt 0:03:52]} Re2 {[%emt 0:01:15]} 22. Qd3 {[%emt 0:00:36]} Re5 {[%emt 0:03:00]} 23. f4 {[%emt 0:01:07]} Be4 {[%emt 0:01:41]} 24. Qc4+ {[%emt 0:00:10]} Bd5 {[%emt 0:00:22]} 25. Qd3 {[%emt 0:00:10]} Be4 {[%emt 0:00:55]} 26. Qc4+ {[%emt 0:00:09]} Bd5 {[%emt 0:01:15]} 27. Qd3 {[%emt 0:00:13]} 1/2-1/2

[Event "WSTCC-50 2024"]
[Site "Krakow"]
[Date "2024.07.04"]
[Round "3.19"]
[White "Harstad, Christian"]
[Black "Fomina, Tatyana"]
[Result "1/2-1/2"]
[ECO "D07"]
[WhiteElo "1917"]
[BlackElo "2192"]
[Annotator "RC"]
[PlyCount "99"]
[EventDate "2024.07.01"]
[EventType "team-tourn"]
[EventCountry "POL"]
[SourceTitle "playchess.com"]
[Source "ChessBase"]
[SourceQuality "1"]
[TimeControl "40/5400+30:1800+30"]

1. d4 {[%emt 0:00:02]} d5 {[%emt 0:00:07]} 2. c4 {[%emt 0:00:47]} Nc6 {[%emt 0:00:07]} 3. cxd5 {[%emt 0:00:37]} Qxd5 {[%emt 0:00:07]} 4. e3 {[%emt 0:00:24]} e5 {[%emt 0:00:20]} 5. Nc3 {[%emt 0:00:26]} Bb4 {[%emt 0:00:12]} 6. Bd2 {[%emt 0:00:53]} Bxc3 {[%emt 0:00:21]} 7. Bxc3 {[%emt 0:01:25]} exd4 {[%emt 0:01:46]} 8. Ne2 {[%emt 0:01:51]} Nf6 {[%emt 0:07:28]} 9. Nxd4 {[%emt 0:03:20]} O-O {[%emt 0:03:19]} 10. Be2 {[%emt 0:11:26]} Nxd4 {[%emt 0:15:10]} 11. Qxd4 {[%emt 0:03:30]} c5 {[%emt 0:12:19]} 12. Qh4 {[%emt 0:21:36]} Qe6 {[%emt 0:02:29]} 13. Bd3 {[%emt 0:10:43]} h6 {[%emt 0:02:00]} 14. O-O {[%emt 0:08:37]} Bd7 {[%emt 0:03:18]} 15. Bc4 {[%emt 0:08:42]} Qe7 {[%emt 0:02:02]} 16. Bxf6 {[%emt 0:06:19]} Qxf6 {[%emt 0:00:28]} 17. Qxf6 {[%emt 0:00:07]} gxf6 {[%emt 0:00:05]} 18. Rfd1 {[%emt 0:01:50]} Rfd8 {[%emt 0:01:35]} 19. Bd5 {[%emt 0:04:12]} Be6 {[%emt 0:03:05]} 20. e4 {[%emt 0:00:29]} Rab8 {[%emt 0:04:59]} 21. Rd2 {[%emt 0:00:58]} Kf8 {[%emt 0:03:35]} 22. Kf1 {[%emt 0:00:36]} Ke7 {[%emt 0:00:17]} 23. Rad1 {[%emt 0:00:30]} b5 {[%emt 0:02:28]} 24. Ke2 {[%emt 0:01:14]} c4 {[%emt 0:04:15]} 25. Ke3 {[%emt 0:01:45]} a5 {[%emt 0:04:09]} 26. Rd4 {[%emt 0:00:35]} a4 {[%emt 0:05:55]} 27. a3 {[%emt 0:01:33]} Bxd5 {[%emt 0:02:45]} 28. exd5 {[%emt 0:01:01]} Kd6 {[%emt 0:02:31]} 29. Rf4 {[%emt 0:02:26]} Kc5 {[%emt 0:01:25]} 30. Rxf6 {[%emt 0:00:41]} Rxd5 {[%emt 0:01:06]} 31. Rxd5+ {[%emt 0:00:29]} Kxd5 {[%emt 0:00:06]} 32. Kd2 {[%emt 0:00:53]} b4 {[%emt 0:01:25]} 33. axb4 {[%emt 0:00:26]} Rxb4 {[%emt 0:00:20]} 34. Kc2 {[%emt 0:00:21]} a3 {[%emt 0:08:00]} 35. bxa3 {[%emt 0:00:20]} Ra4 {[%emt 0:00:11]} 36. Rf3 {[%emt 0:01:03]} Kd4 {[%emt 0:02:41]} 37. g3 {[%emt 0:01:48]} Ra6 {[%emt 0:01:28]} 38. Re3 {[%emt 0:00:31]} Rf6 {[%emt 0:00:22]} 39. Re2 {[%emt 0:00:30]} Rf3 {[%emt 0:00:14]} 40. Rd2+ {[%emt 0:02:14]} Kc5 {[%emt 0:00:14]} 41. Re2 {[%emt 0:06:29]} Rxa3 {[%emt 0:02:13]} 42. Re5+ {[%emt 0:00:43]} Kd4 {[%emt 0:05:08]} 43. Rf5 {[%emt 0:00:31]} Ra2+ {[%emt 0:02:06]} 44. Kc1 {[%emt 0:06:20]} Ra1+ {[%emt 0:01:52]} 45. Kb2 {[%emt 0:00:56]} Ra7 {[%emt 0:00:17]} 46. Kc2 {[%emt 0:00:29]} Ra2+ {[%emt 0:00:20]} 47. Kb1 {[%emt 0:00:12]} Ra7 {[%emt 0:01:38]} 48. Kc2 {[%emt 0:00:08]} Ra2+ {[%emt 0:00:07]} 49. Kb1 {[%emt 0:00:05]} Ra7 {[%emt 0:00:06]} 50. Kc2 1/2-1/2

[Event "WSTCC-50 2024"]
[Site "Krakow"]
[Date "2024.07.04"]
[Round "3.19"]
[White "Kohnen, Marc"]
[Black "Dawson, Alastair"]
[Result "0-1"]
[ECO "B12"]
[WhiteElo "1837"]
[BlackElo "1850"]
[Annotator "NA RC"]
[PlyCount "68"]
[EventDate "2024.07.01"]
[EventType "team-tourn"]
[EventCountry "POL"]
[SourceTitle "playchess.com"]
[Source "ChessBase"]
[SourceQuality "1"]
[TimeControl "40/5400+30:1800+30"]

1. e4 {[%emt 0:00:05]} c6 {[%emt 0:00:14]} 2. d4 {[%emt 0:00:22]} d5 {[%emt 0:00:08]} 3. e5 {[%emt 0:00:26]} c5 {[%emt 0:00:14]} 4. c3 {[%emt 0:00:43]} Nc6 {[%emt 0:01:45]} 5. Nf3 {[%emt 0:01:13]} e6 {[%emt 0:02:23]} 6. Bd3 {[%emt 0:04:47]} Bd7 {[%emt 0:00:22]} 7. O-O {[%emt 0:01:04]} Rc8 {[%emt 0:00:15]} 8. Nbd2 {[%emt 0:04:41]} cxd4 {[%emt 0:09:17]} 9. cxd4 {[%emt 0:00:12]} Qb6 {[%emt 0:03:41]} 10. Nb3 {[%emt 0:02:18]} a5 {[%emt 0:02:03]} 11. a4 {[%emt 0:03:51]} Nb4 {[%emt 0:09:36]} 12. Bb1 {[%emt 0:06:46]} Qc7 {[%emt 0:09:26]} 13. Ng5 {[%emt 0:06:43]} b6 {[%emt 0:14:01]} 14. Nxf7 {[%emt 0:07:22]} Kxf7 {[%emt 0:00:25]} 15. Qh5+ {[%emt 0:00:08]} g6 {[%emt 0:00:37]} 16. Bxg6+ {[%emt 0:00:06]} hxg6 {[%emt 0:00:10]} 17. Qxh8 {[%emt 0:00:07]} Nc2 {[%emt 0:11:05]} 18. Rb1 {[%emt 0:08:49]} Bxa4 {[%emt 0:03:14]} 19. Nd2 {[%emt 0:00:32]} Nxd4 {[%emt 0:00:22]} 20. Nf3 {[%emt 0:00:40]} Nxf3+ {[%emt 0:01:22]} 21. gxf3 {[%emt 0:00:09]} Bg7 {[%emt 0:01:45]} 22. Qh4 {[%emt 0:00:50]} Bc2 {[%emt 0:00:55]} 23. Qf4+ {[%emt 0:02:11]} Bf5 {[%emt 0:03:31]} 24. Re1 {[%emt 0:00:54]} Bh6 {[%emt 0:02:52]} 25. Qh4 {[%emt 0:01:33]} Bg7 {[%emt 0:03:08]} 26. Qf4 {[%emt 0:00:17]} Ke8 {[%emt 0:02:20]} 27. Ra1 {[%emt 0:00:41]} Qe7 {[%emt 0:08:08]} 28. Bd2 {[%emt 0:02:17]} Rc4 {[%emt 0:00:21]} 29. Qe3 {[%emt 0:00:19]} Bh6 {[%emt 0:01:25]} 30. Qe2 {[%emt 0:01:38]} Rc2 {[%emt 0:01:17]} 31. Qb5+ {[%emt 0:00:14]} Qd7 {[%emt 0:00:39]} 32. Qxd7+ {[%emt 0:05:48]} Kxd7 {[%emt 0:00:01]} 33. Be3 {[%emt 0:00:18]} Rxb2 {[%emt 0:00:54]} 34. Rab1 {[%emt 0:00:15]} Rxb1 {[%emt 0:00:38]} 0-1

[Event "WSTCC-50 2024"]
[Site "Krakow"]
[Date "2024.07.04"]
[Round "3.20"]
[White "Korge, Kersti"]
[Black "Johnsen, Sylvia"]
[Result "0-1"]
[ECO "A00"]
[WhiteElo "1859"]
[BlackElo "1878"]
[Annotator "NA RC"]
[PlyCount "56"]
[EventDate "2024.07.01"]
[EventType "team-tourn"]
[EventCountry "POL"]
[SourceTitle "playchess.com"]
[Source "ChessBase"]
[SourceQuality "1"]
[TimeControl "40/5400+30:1800+30"]

1. b4 {[%emt 0:00:02]} e5 {[%emt 0:00:54]} 2. Bb2 {[%emt 0:00:21]} d6 {[%emt 0:00:16]} 3. e3 {[%emt 0:00:18]} Nf6 {[%emt 0:00:21]} 4. Nf3 {[%emt 0:00:54]} Be7 {[%emt 0:02:34]} 5. Be2 {[%emt 0:00:17]} Be6 {[%emt 0:03:17]} 6. c4 {[%emt 0:01:07]} O-O {[%emt 0:07:12]} 7. O-O {[%emt 0:02:05]} a5 {[%emt 0:05:18]} 8. b5 {[%emt 0:00:42]} a4 {[%emt 0:00:41]} 9. a3 {[%emt 0:00:33]} c5 {[%emt 0:02:52]} 10. Nc3 {[%emt 0:02:23]} Qa5 {[%emt 0:04:06]} 11. Qc2 {[%emt 0:00:25]} Nbd7 {[%emt 0:01:08]} 12. Ng5 {[%emt 0:01:34]} Nb6 {[%emt 0:04:49]} 13. Nxe6 {[%emt 0:00:25]} fxe6 {[%emt 0:00:10]} 14. Ne4 {[%emt 0:04:42]} Nxe4 {[%emt 0:04:50]} 15. Qxe4 {[%emt 0:00:07]} Qxd2 {[%emt 0:00:17]} 16. Bd3 {[%emt 0:00:07]} g6 {[%emt 0:00:55]} 17. Rab1 {[%emt 0:07:46]} Rab8 {[%emt 0:05:06]} 18. f4 {[%emt 0:00:42]} Rf5 {[%emt 0:16:24]} 19. Rf2 {[%emt 0:01:19]} Qa5 {[%emt 0:01:01]} 20. Qf3 {[%emt 0:07:14]} Rf6 {[%emt 0:05:04]} 21. Qg4 {[%emt 0:02:06]} Rbf8 {[%emt 0:04:17]} 22. Rbf1 {[%emt 0:03:06]} Kg7 {[%emt 0:08:44]} 23. fxe5 {[%emt 0:11:41]} Rxf2 {[%emt 0:00:43]} 24. Rxf2 {[%emt 0:00:39]} Qe1+ {[%emt 0:01:02]} 25. Rf1 {[%emt 0:00:07]} Qxe3+ {[%emt 0:02:18]} 26. Kh1 {[%emt 0:00:14]} Qxd3 {[%emt 0:01:59]} 27. exd6+ {[%emt 0:00:15]} Bf6 {[%emt 0:00:32]} 28. Rd1 {[%emt 0:02:01]} Bxb2 {[%emt 0:01:00]} 0-1

[Event "WSTCC-50 2024"]
[Site "Krakow"]
[Date "2024.07.04"]
[Round "3.20"]
[White "Aird, Ian"]
[Black "Kayser, Pierrot"]
[Result "1/2-1/2"]
[ECO "C00"]
[WhiteElo "1840"]
[BlackElo "1764"]
[Annotator "NA RC"]
[PlyCount "67"]
[EventDate "2024.07.01"]
[EventType "team-tourn"]
[EventCountry "POL"]
[SourceTitle "playchess.com"]
[Source "ChessBase"]
[SourceQuality "1"]
[TimeControl "40/5400+30:1800+30"]

1. e4 {[%emt 0:00:01]} e6 {[%emt 0:00:40]} 2. d3 {[%emt 0:00:26]} c5 {[%emt 0:01:03]} 3. Nf3 {[%emt 0:00:27]} d6 {[%emt 0:00:14]} 4. g3 {[%emt 0:01:15]} Nc6 {[%emt 0:01:08]} 5. Bg2 {[%emt 0:00:23]} Nf6 {[%emt 0:01:08]} 6. O-O {[%emt 0:00:15]} Be7 {[%emt 0:00:52]} 7. Re1 {[%emt 0:00:54]} e5 {[%emt 0:02:28]} 8. c3 {[%emt 0:01:39]} O-O {[%emt 0:01:31]} 9. h3 {[%emt 0:03:13]} Ne8 {[%emt 0:04:19]} 10. d4 {[%emt 0:01:48]} cxd4 {[%emt 0:02:58]} 11. cxd4 {[%emt 0:00:46]} exd4 {[%emt 0:00:30]} 12. Nxd4 {[%emt 0:01:24]} Nxd4 {[%emt 0:02:40]} 13. Qxd4 {[%emt 0:00:43]} Bf6 {[%emt 0:00:17]} 14. Qd3 {[%emt 0:03:05]} Qb6 {[%emt 0:02:31]} 15. Nc3 {[%emt 0:01:26]} Be5 {[%emt 0:04:37]} 16. Rb1 {[%emt 0:04:33]} Be6 {[%emt 0:06:07]} 17. Be3 {[%emt 0:02:41]} Qd8 {[%emt 0:06:17]} 18. Bd4 {[%emt 0:08:16]} Qd7 {[%emt 0:04:32]} 19. Kh2 {[%emt 0:01:42]} Nc7 {[%emt 0:06:12]} 20. Red1 {[%emt 0:11:31]} Rfd8 {[%emt 0:04:26]} 21. Qe2 {[%emt 0:04:05]} Qe8 {[%emt 0:05:30]} 22. Rd2 {[%emt 0:02:14]} a6 {[%emt 0:06:05]} 23. a4 {[%emt 0:06:03]} b5 {[%emt 0:01:32]} 24. Bb6 {[%emt 0:07:22]} Rd7 {[%emt 0:02:26]} 25. Bxc7 {[%emt 0:04:53]} Bc4 {[%emt 0:00:34]} 26. Qg4 {[%emt 0:03:03]} Rxc7 {[%emt 0:03:45]} 27. axb5 {[%emt 0:00:45]} axb5 {[%emt 0:03:45]} 28. f4 {[%emt 0:03:09]} Bxc3 {[%emt 0:01:17]} 29. bxc3 {[%emt 0:00:15]} Rd8 {[%emt 0:00:29]} 30. Rd4 {[%emt 0:08:41]} Qe6 {[%emt 0:03:50]} 31. e5 {[%emt 0:02:26]} Qxg4 {[%emt 0:01:08]} 32. hxg4 {[%emt 0:00:34]} d5 {[%emt 0:01:05]} 33. Rbd1 {[%emt 0:03:54]} Rcd7 {[%emt 0:01:26]} 34. R1d2 {[%emt 0:00:58]} 1/2-1/2

[Event "WSTCC-50 2024"]
[Site "Krakow"]
[Date "2024.07.04"]
[Round "3.21"]
[White "Bouah, Lyndon"]
[Black "Homer, Stephen J"]
[Result "1-0"]
[ECO "D20"]
[WhiteElo "1996"]
[BlackElo "2019"]
[Annotator "NA"]
[PlyCount "59"]
[EventDate "2024.07.01"]
[EventType "team-tourn"]
[EventCountry "POL"]
[SourceTitle "playchess.com"]
[Source "ChessBase"]
[SourceQuality "1"]
[TimeControl "40/5400+30:1800+30"]

1. d4 {[%emt 0:00:03]} d5 {[%emt 0:00:01]} 2. c4 {[%emt 0:00:18]} dxc4 {[%emt 0:00:03]} 3. e3 {[%emt 0:01:53]} b5 {[%emt 0:01:30]} 4. a4 {[%emt 0:01:04]} b4 {[%emt 0:00:28]} 5. Qf3 {[%emt 0:00:24]} c6 {[%emt 0:01:00]} 6. Bxc4 {[%emt 0:01:05]} Nf6 {[%emt 0:08:57]} 7. Ne2 {[%emt 0:00:30]} Bg4 8. Qg3 {[%emt 0:00:36]} Qd6 {[%emt 0:06:00]} 9. f3 {[%emt 0:02:41]} Qxg3+ {[%emt 0:11:36]} 10. hxg3 {[%emt 0:00:27]} Bc8 {[%emt 0:01:24]} 11. e4 {[%emt 0:01:16]} e6 {[%emt 0:03:35]} 12. g4 {[%emt 0:02:10]} Ba6 {[%emt 0:02:07]} 13. Nd2 {[%emt 0:03:12]} Bxc4 {[%emt 0:08:02]} 14. Nxc4 {[%emt 0:00:02]} Na6 {[%emt 0:01:40]} 15. Ne5 {[%emt 0:02:18]} c5 {[%emt 0:10:04]} 16. Be3 {[%emt 0:03:06]} cxd4 {[%emt 0:03:40]} 17. Nxd4 {[%emt 0:00:09]} Bc5 {[%emt 0:05:43]} 18. Ke2 {[%emt 0:03:05]} Rc8 {[%emt 0:15:23]} 19. Rac1 {[%emt 0:02:28]} Nd7 {[%emt 0:04:17]} 20. Nxd7 {[%emt 0:09:47]} Kxd7 {[%emt 0:00:01]} 21. Rhd1 {[%emt 0:00:12]} Ke7 {[%emt 0:00:07]} 22. Nb5 {[%emt 0:02:15]} Bxe3 {[%emt 0:08:16]} 23. Kxe3 {[%emt 0:00:24]} b3 {[%emt 0:02:11]} 24. Nxa7 {[%emt 0:01:13]} Rc2 {[%emt 0:02:42]} 25. Nc6+ {[%emt 0:01:34]} Kf6 {[%emt 0:00:02]} 26. Rxc2 {[%emt 0:00:19]} bxc2 {[%emt 0:00:07]} 27. Rc1 {[%emt 0:00:08]} h5 {[%emt 0:03:11]} 28. gxh5 {[%emt 0:02:01]} Rc8 {[%emt 0:00:31]} 29. Rxc2 {[%emt 0:01:07]} Kg5 {[%emt 0:00:26]} 30. b4 {[%emt 0:01:32]} 1-0